bitfinex-derivatives/quotes_BTCF0:USTF0_20230402
["timestamp","ask_amount","ask_price","bid_price","bid_amount"]
[1680445308048,0.1266535,28296.0,28291.0,0.3007]
[1680445308248,0.1286535,28296.0,28291.0,0.3027]
[1680445311055,0.1266535,28293.0,28291.0,0.002]
[1680445311249,0.05,28292.0,28291.0,0.002]
[1680445311957,0.1766535,28293.0,28291.0,0.002]
[1680445312153,0.1766535,28293.0,28288.0,0.3007]
[1680445312345,0.1266535,28293.0,28291.0,0.002]
[1680445312750,0.002,28292.0,28289.0,0.05]
[1680445313252,0.1286535,28293.0,28291.0,0.001]
[1680445313653,0.002,28292.0,28289.0,0.05]
[1680445314948,0.1286535,28293.0,28291.0,0.001]
[1680445315553,0.002,28292.0,28289.0,0.051]
[1680445315747,0.002,28292.0,28289.0,0.001]
[1680445315954,0.1286535,28293.0,28291.0,0.001]
[1680445316558,0.002,28292.0,28289.0,0.051]
[1680445316850,0.002,28292.0,28289.0,0.001]
[1680445317051,0.1286535,28293.0,28291.0,0.001]
[1680445318257,0.002,28292.0,28289.0,0.001]
[1680445318655,0.1286535,28293.0,28291.0,0.001]
[1680445319264,0.002,28292.0,28289.0,0.051]
[1680445319558,0.1266535,28293.0,28289.0,0.05]
[1680445319862,0.1286535,28293.0,28291.0,0.001]
[1680445320953,0.002,28292.0,28289.0,0.051]
[1680445321355,0.1286535,28293.0,28291.0,0.002]
[1680445321856,0.002,28292.0,28289.0,0.051]
[1680445322160,0.002,28292.0,28289.0,0.001]
[1680445322357,0.1286535,28293.0,28291.0,0.002]
[1680445323759,0.002,28292.0,28289.0,0.051]
[1680445323959,0.002,28292.0,28289.0,0.001]
[1680445324159,0.3007,28292.0,28287.0,0.6591]
[1680445324365,0.3007,28292.0,28291.0,0.002]
[1680445324758,0.3027,28292.0,28289.0,0.001]
[1680445325361,0.3027,28292.0,28291.0,0.001]
[1680445325660,0.3007,28292.0,28289.0,0.001]
[1680445325960,0.3027,28292.0,28289.0,0.001]
[1680445327154,0.3027,28292.0,28291.0,0.001]
[1680445327654,0.3027,28292.0,28289.0,0.001]
[1680445328060,0.3027,28292.0,28291.0,0.001]
[1680445328653,0.3027,28292.0,28289.0,0.001]
[1680445329762,0.3027,28292.0,28291.0,0.001]
[1680445330268,0.3027,28292.0,28289.0,0.001]
[1680445330766,0.3027,28292.0,28291.0,0.001]
[1680445331163,0.3007,28292.0,28289.0,0.001]
[1680445331366,0.3027,28292.0,28289.0,0.001]
[1680445332466,0.3027,28292.0,28291.0,0.001]
[1680445332963,0.3027,28292.0,28289.0,0.001]
[1680445333356,0.3027,28292.0,28291.0,0.001]
[1680445333568,0.002,28292.0,28291.0,0.001]
[1680445333965,0.002,28292.0,28289.0,0.001]
[1680445334669,0.002,28292.0,28290.0,0.3007]
[1680445334967,0.002,28292.0,28291.0,0.05]
[1680445335158,0.1266535,28295.0,28291.0,0.05]
[1680445335363,0.002,28292.0,28291.0,0.051]
[1680445335761,0.002,28292.0,28291.0,0.05]
[1680445336166,0.1266535,28295.0,28291.0,0.05]
[1680445336359,0.002,28292.0,28291.0,0.05]
[1680445340269,0.1266535,28296.0,28291.0,0.3507]
[1680445340470,0.1266535,28298.0,28295.0,0.3007]
[1680445340667,0.1266535,28298.0,28295.0,0.6014]
[1680445340868,0.1266535,28299.0,28295.0,0.6014]
[1680445341070,0.1266535,28299.0,28298.0,0.3007]
[1680445342071,0.1266535,28299.0,28298.0,0.3027]
[1680445343176,0.1266535,28300.0,28298.0,0.3027]
[1680445343372,0.1266535,28301.0,28298.0,0.3027]
[1680445343575,0.1266535,28301.0,28298.0,0.6034]
[1680445343872,0.1266535,28301.0,28298.0,0.6014]
[1680445344073,0.1266535,28301.0,28298.0,0.6034]
[1680445345367,0.1266535,28302.0,28298.0,0.6034]
[1680445347079,0.1266535,28302.0,28298.0,0.6014]
[1680445347280,0.1266535,28302.0,28298.0,0.6034]
[1680445349075,0.1266535,28301.0,28298.0,0.6034]
[1680445349876,0.1266535,28302.0,28298.0,0.6034]
[1680445350578,0.1266535,28302.0,28298.0,0.6024]
[1680445350974,0.1266535,28302.0,28298.0,0.6034]
[1680445353777,0.1266535,28303.0,28298.0,0.6034]
[1680445354083,0.1266535,28302.0,28298.0,0.6034]
[1680445354382,0.1266535,28303.0,28298.0,0.6034]
[1680445354583,0.1266535,28302.0,28298.0,0.6034]
[1680445355279,0.21887134,28304.0,28301.0,0.3007]
[1680445355280,0.1266535,28303.0,28301.0,0.3007]
[1680445356382,0.1266535,28303.0,28301.0,0.3027]
[1680445358580,0.05,28302.0,28295.0,0.318]
[1680445358780,0.3007,28299.0,28295.0,0.318]
[1680445358983,0.05,28298.0,28295.0,0.318]
[1680445359385,0.05,28298.0,28295.0,0.32]
[1680445359684,0.05,28298.0,28295.0,0.002]
[1680445360485,0.3507,28299.0,28295.0,0.002]
[1680445360982,0.3007,28299.0,28295.0,0.002]
[1680445361379,0.3027,28299.0,28295.0,0.002]
[1680445364085,0.002,28299.0,28295.0,0.002]
[1680445364388,0.3027,28299.0,28295.0,0.002]
[1680445364587,0.3027,28299.0,28292.0,0.3507]
[1680445365487,0.3047,28299.0,28292.0,0.3527]
[1680445367285,0.43108961,28299.0,28292.0,0.3527]
[1680445368788,0.43108961,28299.0,28292.0,0.002]
[1680445368986,0.12638961,28297.0,28292.0,0.002]
[1680445370397,0.13038961,28297.0,28292.0,0.002]
[1680445370695,0.12638961,28297.0,28291.0,0.05]
[1680445370894,0.13038961,28297.0,28292.0,0.002]
[1680445372885,0.12638961,28296.0,28292.0,0.002]
[1680445373999,0.13038961,28296.0,28292.0,0.002]
[1680445374190,0.004,28296.0,28292.0,0.3027]
[1680445374496,0.004,28296.0,28293.0,0.05]
[1680445374699,0.004,28296.0,28295.0,0.3007]
[1680445375498,0.12638961,28300.0,28295.0,0.3007]
[1680445375799,0.12638961,28300.0,28299.0,0.3007]
[1680445376798,0.12638961,28301.0,28299.0,0.3007]
[1680445377695,0.12638961,28301.0,28299.0,0.3027]
[1680445378694,0.12638961,28301.0,28299.0,0.3017]
[1680445378890,0.12638961,28302.0,28299.0,0.6024]
[1680445380695,0.12638961,28302.0,28299.0,0.6034]
[1680445380893,0.12638961,28301.0,28299.0,0.6034]
[1680445381893,0.12638961,28302.0,28299.0,0.6034]
[1680445382093,0.12638961,28301.0,28299.0,0.6034]
[1680445383010,0.12638961,28301.0,28299.0,0.6024]
[1680445389810,0.12638961,28301.0,28300.0,0.3007]
[1680445392409,0.12638961,28301.0,28300.0,0.3017]
[1680445395009,0.12638961,28302.0,28300.0,0.3017]
[1680445395203,0.12638961,28301.0,28300.0,0.3017]
[1680445395913,0.12638961,28302.0,28300.0,0.3027]
[1680445396116,0.12638961,28301.0,28300.0,0.3027]
[1680445396311,0.12638961,28301.0,28300.0,0.3007]
[1680445396616,0.12638961,28301.0,28300.0,0.3017]
[1680445397214,0.12638961,28301.0,28300.0,0.3027]
[1680445398918,0.12638961,28301.0,28300.0,0.3017]
[1680445412928,0.12638961,28302.0,28300.0,0.3017]
[1680445414730,0.12638961,28302.0,28300.0,0.3027]
[1680445416443,0.12638961,28301.0,28300.0,0.3027]
[1680445416845,0.12638961,28301.0,28300.0,0.002]
[1680445417042,0.12638961,28301.0,28300.0,0.3027]
[1680445417438,0.12638961,28302.0,28300.0,0.3027]
[1680445417636,0.12638961,28302.0,28300.0,0.3017]
[1680445417841,0.12638961,28301.0,28300.0,0.3017]
[1680445419948,0.16887134,28301.0,28300.0,0.3017]
[1680445421046,0.16887134,28302.0,28300.0,0.3017]
[1680445421639,0.16887134,28301.0,28300.0,0.3017]
[1680445422845,0.16887134,28301.0,28300.0,0.3027]
[1680445423449,0.16887134,28301.0,28300.0,0.3017]
[1680445424249,0.16887134,28301.0,28300.0,0.3517]
[1680445424449,0.16887134,28302.0,28300.0,0.3517]
[1680445424645,0.12689867,28302.0,28301.0,0.05]
[1680445424946,0.12689867,28303.0,28301.0,0.05]
[1680445425142,0.12689867,28303.0,28302.0,0.3007]
[1680445426345,0.10289867,28304.0,28302.0,0.3007]
[1680445426541,0.21132646,28308.0,28303.0,0.05]
[1680445426744,0.21132646,28308.0,28307.0,0.3007]
[1680445427042,0.21132646,28309.0,28307.0,0.3007]
[1680445428346,0.21132646,28309.0,28307.0,0.3027]
[1680445428741,0.21132646,28310.0,28307.0,0.3027]
[1680445428946,0.21132646,28312.0,28307.0,0.3527]
[1680445429144,0.21132646,28312.0,28310.0,0.3007]
[1680445430044,0.21132646,28312.0,28310.0,0.3027]
[1680445430744,0.21132646,28313.0,28310.0,0.3027]
[1680445430948,0.21132646,28313.0,28310.0,0.6034]
[1680445434753,0.21132646,28314.0,28310.0,0.6034]
[1680445434953,0.05,28313.0,28310.0,0.6034]
[1680445436556,0.16880301,28312.0,28310.0,0.6034]
[1680445438056,0.16880301,28313.0,28310.0,0.6034]
[1680445441159,0.16880301,28314.0,28311.0,0.05]
[1680445441458,0.16880301,28314.0,28313.0,0.3007]
[1680445442462,0.16880301,28314.0,28313.0,0.3027]
[1680445445360,0.16880301,28314.0,28313.0,0.002]
[1680445446160,0.16880301,28315.0,28313.0,0.002]
[1680445446554,0.05,28314.0,28311.0,0.26739]
[1680445446860,0.12653769,28313.0,28311.0,0.26739]
[1680445447459,0.12653769,28313.0,28311.0,0.26939]
[1680445448255,0.12853769,28313.0,28311.0,0.26939]
[1680445448663,0.12853769,28313.0,28312.0,0.05]
[1680445448856,0.002,28313.0,28312.0,0.05]
[1680445449758,0.002,28313.0,28312.0,0.052]
[1680445450963,0.002,28313.0,28312.0,0.002]
[1680445451159,0.17853769,28313.0,28312.0,0.002]
[1680445451465,0.12853769,28313.0,28312.0,0.002]
[1680445455862,0.17853769,28313.0,28312.0,0.002]
[1680445456163,0.05,28312.0,28305.0,0.3507]
[1680445456359,0.17645329,28312.0,28305.0,0.3007]
[1680445456756,0.3007,28310.0,28305.0,0.3007]
[1680445456955,0.05,28309.0,28305.0,0.3007]
[1680445457367,0.05,28309.0,28305.0,0.3027]
[1680445458561,0.12645329,28309.0,28305.0,0.3027]
[1680445458855,0.05,28308.0,28305.0,0.3027]
[1680445459257,0.13045329,28309.0,28305.0,0.3027]
[1680445459861,0.004,28308.0,28305.0,0.3027]
[1680445460264,0.13045329,28309.0,28305.0,0.3027]
[1680445460560,0.12645329,28308.0,28305.0,0.3027]
[1680445461467,0.13045329,28308.0,28305.0,0.3027]
[1680445462870,0.12645329,28307.0,28305.0,0.3027]
[1680445464371,0.13045329,28307.0,28305.0,0.3027]
[1680445466974,0.12645329,28306.0,28305.0,0.3027]
[1680445468474,0.13045329,28306.0,28305.0,0.3027]
[1680445470875,0.004,28306.0,28305.0,0.3027]
[1680445471676,0.13069833,28306.0,28305.0,0.3027]
[1680445472775,0.004,28306.0,28305.0,0.3027]
[1680445473876,0.13070726,28306.0,28305.0,0.3027]
[1680445476976,0.13070726,28306.0,28305.0,0.6034]
[1680445477180,0.12670726,28308.0,28305.0,0.6034]
[1680445477380,0.12670726,28309.0,28306.0,0.05]
[1680445477572,0.12670726,28309.0,28308.0,0.3007]
[1680445478878,0.16880301,28311.0,28308.0,0.3007]
[1680445478879,0.12670726,28310.0,28308.0,0.3007]
[1680445479273,0.12670726,28310.0,28308.0,0.3027]
[1680445485588,0.12670726,28309.0,28308.0,0.3027]
[1680445485789,0.16880301,28311.0,28308.0,0.3027]
[1680445485790,0.12670726,28310.0,28308.0,0.3027]
[1680445485989,0.12670726,28309.0,28308.0,0.3027]
[1680445486184,0.12670726,28310.0,28308.0,0.3027]
[1680445486385,0.12670726,28309.0,28308.0,0.3027]
[1680445493896,0.12670726,28310.0,28308.0,0.3027]
[1680445495690,0.12670726,28310.0,28309.0,0.05]
[1680445496898,0.12670726,28310.0,28309.0,0.052]
[1680445497303,0.12670726,28310.0,28309.0,0.002]
[1680445497995,0.12670726,28310.0,28309.0,0.052]
[1680445498192,0.12670726,28310.0,28309.0,0.3027]
[1680445498396,0.12670726,28310.0,28309.0,0.3527]
[1680445498699,0.12670726,28310.0,28309.0,0.26739]
[1680445499098,0.12670726,28310.0,28309.0,0.31739]
[1680445501197,0.12670726,28310.0,28309.0,0.26739]
[1680445502202,0.12670726,28310.0,28309.0,0.31739]
[1680445505304,0.12670726,28310.0,28309.0,0.6514]
[1680445505508,0.12670726,28311.0,28309.0,0.6514]
[1680445505893,0.16880301,28312.0,28309.0,0.6514]
[1680445505894,0.12670726,28310.0,28309.0,0.6514]
[1680445507101,0.12670726,28311.0,28309.0,0.6514]
[1680445508408,0.12670726,28311.0,28309.0,0.6014]
[1680445508610,0.12870726,28311.0,28309.0,0.6034]
[1680445508909,0.12872658,28311.0,28310.0,0.05]
[1680445509609,0.002,28311.0,28310.0,0.05]
[1680445510195,0.16880301,28312.0,28310.0,0.05]
[1680445510402,0.12872931,28311.0,28310.0,0.052]
[1680445512704,0.12872931,28311.0,28310.0,0.002]
[1680445512906,0.002,28311.0,28310.0,0.002]
[1680445513204,0.002,28311.0,28310.0,0.052]
[1680445513612,0.002,28311.0,28310.0,0.002]
[1680445513910,0.002,28311.0,28310.0,0.0139657]
[1680445516110,0.17080301,28311.0,28310.0,0.0139657]
[1680445521912,0.17122327,28311.0,28310.0,0.0139657]
[1680445522117,0.1712207,28311.0,28310.0,0.0139657]
[1680445522615,0.1712207,28311.0,28310.0,0.0639657]
[1680445524719,0.1712207,28311.0,28310.0,0.0139657]
[1680445525109,0.1712207,28311.0,28310.0,0.0639657]
[1680445525716,0.1712207,28311.0,28310.0,0.0139657]
[1680445526919,0.1712207,28311.0,28310.0,0.0639657]
[1680445527117,0.1712207,28311.0,28310.0,0.0139657]
[1680445528221,0.1712207,28311.0,28310.0,0.0639657]
[1680445528419,0.1712207,28311.0,28310.0,0.0139657]
[1680445528620,0.1712207,28311.0,28310.0,0.0639657]
[1680445528918,0.1712207,28311.0,28310.0,0.0139657]
[1680445529313,0.1712207,28311.0,28310.0,0.0639657]
[1680445530214,0.1712207,28311.0,28310.0,0.0139657]
[1680445530818,0.002,28311.0,28310.0,0.0139657]
[1680445531027,0.002,28311.0,28310.0,0.0639657]
[1680445531922,0.1712207,28311.0,28310.0,0.0639657]
[1680445532227,0.002,28311.0,28310.0,0.0639657]
[1680445533724,0.1712207,28311.0,28310.0,0.0639657]
[1680445541341,0.1712207,28311.0,28310.0,0.0139657]
[1680445541636,0.1712207,28311.0,28310.0,0.0639657]
[1680445541939,0.002,28311.0,28310.0,0.0639657]
[1680445546638,0.002,28311.0,28310.0,0.0139657]
[1680445547134,0.002,28311.0,28310.0,0.0639657]
[1680445547342,0.002,28311.0,28310.0,0.0139657]
[1680445548442,0.002,28311.0,28310.0,0.0639657]
[1680445550845,0.002,28311.0,28310.0,0.06381438]
[1680445552243,0.12890552,28311.0,28310.0,0.06381438]
[1680445553347,0.12890552,28311.0,28310.0,0.01381438]
[1680445553548,0.12889757,28311.0,28310.0,0.01381438]
[1680445553844,0.12889757,28311.0,28310.0,0.06381438]
[1680445557948,0.002,28311.0,28310.0,0.06381438]
[1680445569460,0.002,28311.0,28310.0,0.31451438]
[1680445569662,0.12889757,28311.0,28310.0,0.36451438]
[1680445569860,0.12889757,28311.0,28310.0,0.31451438]
[1680445592573,0.12889757,28311.0,28310.0,0.36451438]
[1680445593373,0.12889757,28311.0,28310.0,0.66521438]
[1680445594377,0.002,28311.0,28310.0,0.66521438]
[1680445594772,0.002,28311.0,28310.0,0.6653657]
[1680445595174,0.12889757,28311.0,28310.0,0.6653657]
[1680445596271,0.002,28311.0,28310.0,0.6653657]
[1680445597280,0.12889757,28311.0,28310.0,0.6653657]
[1680445599280,0.12889757,28311.0,28310.0,0.66524363]
[1680445599681,0.002,28311.0,28310.0,0.61524363]
[1680445599877,0.12889757,28311.0,28310.0,0.61524363]
[1680445604277,0.12889757,28311.0,28310.0,0.31454363]
[1680445612677,0.12889757,28311.0,28310.0,0.31354363]
[1680445618397,0.002,28311.0,28310.0,0.31354363]
[1680445618687,0.002,28311.0,28310.0,0.01284363]
[1680445622282,0.12903504,28311.0,28310.0,0.01284363]
[1680445622482,0.002,28311.0,28310.0,0.01284363]
[1680445623490,0.12903639,28311.0,28310.0,0.01284363]
[1680445623889,0.002,28311.0,28310.0,0.01284363]
[1680445638602,0.002,28311.0,28309.0,0.3007]
[1680445638801,0.12706632,28310.0,28309.0,0.3007]
[1680445639702,0.12706632,28310.0,28309.0,0.3017]
[1680445640203,0.13006632,28310.0,28309.0,0.3017]
[1680445643802,0.003,28310.0,28309.0,0.3017]
[1680445646205,0.003,28310.0,28309.0,0.31213937]
[1680445647396,0.1692207,28314.0,28309.0,0.31213937]
[1680445647607,0.1692207,28315.0,28313.0,0.3007]
[1680445647906,0.1692207,28315.0,28314.0,0.3007]
[1680445648705,0.1692207,28316.0,28314.0,0.3007]
[1680445649107,0.1692207,28316.0,28315.0,0.0122348]
[1680445650905,0.1692207,28317.0,28315.0,0.0142348]
[1680445651513,0.1692207,28316.0,28315.0,0.0142348]
[1680445651709,0.1692207,28317.0,28315.0,0.0122348]
[1680445651909,0.1692207,28317.0,28315.0,0.0142348]
[1680445658625,0.12687596,28316.0,28315.0,0.0142348]
[1680445658923,0.12687596,28316.0,28315.0,0.3149348]
[1680445659410,0.12087596,28316.0,28315.0,0.3149348]
[1680445672736,0.12087596,28316.0,28315.0,0.6156348]
[1680445674135,0.1692207,28318.0,28315.0,0.6156348]
[1680445674329,0.25359175,28322.0,28316.0,0.05]
[1680445674536,0.21143459,28323.0,28320.0,0.3007]
[1680445674727,0.12686201,28322.0,28320.0,0.3007]
[1680445675630,0.12686201,28322.0,28320.0,0.3507]
[1680445677136,0.12686201,28323.0,28320.0,0.3527]
[1680445677337,0.12686201,28323.0,28322.0,0.3007]
[1680445678238,0.12686201,28324.0,28322.0,0.3007]
[1680445678935,0.12686201,28324.0,28322.0,0.3027]
[1680445679243,0.12686201,28325.0,28323.0,0.06833117]
[1680445679440,0.12686201,28325.0,28324.0,0.3007]
[1680445680837,0.12686201,28325.0,28324.0,0.3027]
[1680445682439,0.12686201,28326.0,28324.0,0.3027]
[1680445682636,0.12686201,28326.0,28325.0,0.05]
[1680445683034,0.12676574,28326.0,28325.0,0.05]
[1680445683745,0.12676574,28327.0,28325.0,0.05]
[1680445683936,0.12676574,28327.0,28326.0,0.3007]
[1680445684142,0.12676574,28327.0,28326.0,0.3507]
[1680445684741,0.12676574,28328.0,28326.0,0.3507]
[1680445684940,0.12676574,28329.0,28327.0,0.05]
[1680445685243,0.12676574,28329.0,28328.0,0.3007]
[1680445685746,0.12676574,28330.0,28328.0,0.3007]
[1680445685945,0.12676574,28330.0,28329.0,0.05]
[1680445687152,0.12676574,28331.0,28329.0,0.052]
[1680445687340,0.12676574,28331.0,28330.0,0.3007]
[1680445687946,0.12676574,28332.0,28330.0,0.3007]
[1680445688154,0.12676574,28332.0,28330.0,0.3027]
[1680445689947,0.12676574,28333.0,28330.0,0.3027]
[1680445691447,0.12676574,28334.0,28330.0,0.3027]
[1680445691650,0.12676574,28333.0,28330.0,0.3027]
[1680445692153,0.12676574,28334.0,28330.0,0.3027]
[1680445694054,0.12676574,28335.0,28331.0,0.02110993]
[1680445695355,0.12676574,28335.0,28331.0,0.02310993]
[1680445696351,0.42746574,28336.0,28331.0,0.02310993]
[1680445696552,0.17676574,28335.0,28331.0,0.02310993]
[1680445696759,0.05,28334.0,28331.0,0.02310993]
[1680445697655,0.4,28332.0,28331.0,0.02310993]
[1680445697959,0.87746574,28332.0,28324.0,0.05]
[1680445698154,0.05,28331.0,28323.0,0.3007]
[1680445698361,0.05,28331.0,28325.0,0.01067224]
[1680445698661,0.05,28331.0,28323.0,0.3007]
[1680445698862,0.3007,28329.0,28323.0,0.3007]
[1680445699158,0.05,28328.0,28323.0,0.3027]
[1680445701261,0.002,28328.0,28323.0,0.3027]
[1680445701458,0.052,28328.0,28323.0,0.3027]
[1680445701962,0.3007,28326.0,28323.0,0.3027]
[1680445702158,0.05,28325.0,28323.0,0.3027]
[1680445702559,0.3007,28326.0,28323.0,0.3027]
[1680445703460,0.052,28328.0,28323.0,0.3027]
[1680445703660,0.3507,28329.0,28323.0,0.3007]
[1680445703860,0.002,28325.0,28323.0,0.3017]
[1680445704061,0.05,28328.0,28323.0,0.3007]
[1680445704262,0.002,28326.0,28323.0,0.3017]
[1680445704668,0.05,28328.0,28323.0,0.3017]
[1680445704866,0.002,28325.0,28323.0,0.3017]
[1680445705062,0.05,28328.0,28323.0,0.3007]
[1680445705368,0.002,28326.0,28324.0,0.01067085]
[1680445706670,0.002,28325.0,28324.0,0.01067085]
[1680445707060,0.002,28326.0,28324.0,0.01167085]
[1680445707673,0.009,28325.0,28324.0,0.01167085]
[1680445707968,0.015,28326.0,28324.0,0.01167085]
[1680445709561,0.015,28326.0,28324.0,0.01067085]
[1680445709763,0.009,28325.0,28324.0,0.01167085]
[1680445710162,0.015,28326.0,28324.0,0.01167085]
[1680445710564,0.05,28330.0,28325.0,0.3007]
[1680445710765,0.12676574,28331.0,28326.0,0.05]
[1680445710967,0.12676574,28331.0,28326.0,0.06079957]
[1680445711165,0.12676574,28330.0,28326.0,0.01079957]
[1680445711366,0.12676574,28331.0,28326.0,0.01079957]
[1680445711564,0.17676574,28331.0,28326.0,0.01079957]
[1680445711764,0.14376574,28331.0,28326.0,0.01279957]
[1680445712865,0.14376574,28330.0,28326.0,0.06279957]
[1680445713173,0.14376574,28330.0,28326.0,0.01279957]
[1680445713369,0.12676574,28330.0,28326.0,0.01279957]
[1680445714067,0.19376574,28331.0,28326.0,0.01279957]
[1680445714274,0.017,28330.0,28326.0,0.01279957]
[1680445714974,0.14376574,28330.0,28326.0,0.01279957]
[1680445717977,0.12676574,28329.0,28326.0,0.01279957]
[1680445719071,0.12676574,28328.0,28326.0,0.01079957]
[1680445719278,0.12676574,28328.0,28326.0,0.01279957]
[1680445720276,0.14376574,28328.0,28326.0,0.01279957]
[1680445721880,0.017,28328.0,28326.0,0.01279957]
[1680445722073,0.14376574,28328.0,28326.0,0.01279957]
[1680445722470,0.017,28328.0,28326.0,0.01279957]
[1680445722675,0.14376574,28328.0,28326.0,0.01279957]
[1680445722874,0.14376574,28328.0,28326.0,0.31349957]
[1680445722875,0.017,28328.0,28326.0,0.31349957]
[1680445723079,0.14376574,28328.0,28326.0,0.31349957]
[1680445729979,0.05,28327.0,28326.0,0.01279957]
[1680445730185,0.21915062,28327.0,28326.0,0.01279957]
[1680445730390,0.21915062,28327.0,28320.0,0.3507]
[1680445730586,0.42763796,28325.0,28320.0,0.3007]
[1680445730780,0.12693796,28324.0,28320.0,0.3007]
[1680445731385,0.12693796,28324.0,28320.0,0.3027]
[1680445731984,0.12893796,28324.0,28320.0,0.3007]
[1680445732785,0.12693796,28324.0,28320.0,0.3007]
[1680445733089,0.14293796,28324.0,28320.0,0.3017]
[1680445739191,0.14293796,28324.0,28321.0,0.01074789]
[1680445740601,0.14293796,28324.0,28321.0,0.01174789]
[1680445751909,0.14293796,28324.0,28321.0,0.06174789]
[1680445753099,0.14293796,28324.0,28321.0,0.01174789]
[1680445755998,0.016,28324.0,28321.0,0.01174789]
[1680445756201,0.14293796,28324.0,28321.0,0.01174789]
[1680445756707,0.016,28324.0,28321.0,0.01174789]
[1680445757109,0.016,28324.0,28321.0,0.06174789]
[1680445757399,0.016,28324.0,28321.0,0.01174789]
[1680445757608,0.016,28324.0,28321.0,0.06174789]
[1680445757796,0.016,28324.0,28321.0,0.01174789]
[1680445758102,0.016,28324.0,28321.0,0.06174789]
[1680445759101,0.016,28324.0,28322.0,0.3007]
[1680445759303,0.016,28324.0,28323.0,0.06074395]
[1680445759602,0.016,28324.0,28323.0,0.01074395]
[1680445761008,0.12693796,28325.0,28323.0,0.01074395]
[1680445761215,0.016,28324.0,28323.0,0.01074395]
[1680445761512,0.016,28324.0,28323.0,0.01174395]
[1680445761909,0.14593796,28325.0,28323.0,0.01274395]
[1680445763710,0.14593796,28325.0,28323.0,0.01074395]
[1680445763711,0.12693796,28325.0,28323.0,0.01074395]
[1680445764007,0.014,28324.0,28323.0,0.01074395]
[1680445764212,0.14693796,28325.0,28323.0,0.01074395]
[1680445768020,0.12693796,28324.0,28323.0,0.01074395]
[1680445768623,0.14693796,28325.0,28323.0,0.01074395]
[1680445770422,0.12693796,28324.0,28323.0,0.01074395]
[1680445770621,0.014,28324.0,28323.0,0.01074395]
[1680445771120,0.14693796,28325.0,28323.0,0.01074395]
[1680445771419,0.12693796,28325.0,28323.0,0.01074395]
[1680445771616,0.014,28324.0,28323.0,0.01074395]
[1680445772024,0.14093796,28324.0,28323.0,0.01074395]
[1680445772723,0.12693796,28324.0,28323.0,0.01074395]
[1680445773021,0.14693796,28325.0,28323.0,0.36144395]
[1680445773224,0.014,28324.0,28323.0,0.36144395]
[1680445774225,0.12693796,28327.0,28323.0,0.36144395]
[1680445774421,0.12693796,28327.0,28326.0,0.3007]
[1680445775720,0.14693796,28327.0,28326.0,0.3007]
[1680445776121,0.14697234,28327.0,28326.0,0.3007]
[1680445781741,0.02,28327.0,28326.0,0.3007]
[1680445782637,0.02,28327.0,28326.0,0.30050833]
[1680445783829,0.02,28327.0,28326.0,0.3112979]
[1680445784035,0.14697234,28327.0,28326.0,0.3112979]
[1680445784343,0.02,28327.0,28326.0,0.3112979]
[1680445784537,0.14697234,28327.0,28326.0,0.3112979]
[1680445785435,0.02,28327.0,28326.0,0.3112979]
[1680445787843,0.02,28327.0,28326.0,0.31148957]
[1680445789943,0.02,28327.0,28326.0,0.01078957]
[1680445790132,0.02,28327.0,28326.0,0.3007]
[1680445798853,0.02,28327.0,28326.0,0.31148665]
[1680445805145,0.02,28327.0,28326.0,0.01078665]
[1680445805350,0.02,28327.0,28321.0,0.6014]
[1680445805555,0.17687594,28326.0,28321.0,0.3007]
[1680445805755,0.12687594,28325.0,28321.0,0.3007]
[1680445805951,0.47757594,28325.0,28317.0,0.7996]
[1680445806151,0.47757594,28325.0,28319.0,0.3007]
[1680445806558,0.17687594,28324.0,28319.0,0.3007]
[1680445806857,0.05,28323.0,28319.0,0.3007]
[1680445807445,0.3007,28322.0,28319.0,0.3007]
[1680445807649,0.05,28321.0,28319.0,0.3007]
[1680445808149,0.05,28321.0,28319.0,0.3027]
[1680445808350,0.05,28321.0,28319.0,0.002]
[1680445808551,0.052,28321.0,28319.0,0.002]
[1680445810452,0.064,28321.0,28316.0,0.3007]
[1680445810754,0.05,28321.0,28316.0,0.3007]
[1680445810958,0.064,28321.0,28316.0,0.3007]
[1680445811759,0.3007,28319.0,28316.0,0.3007]
[1680445812254,0.05,28318.0,28315.0,0.3328]
[1680445812555,0.05,28318.0,28313.0,0.3007]
[1680445813254,0.051,28318.0,28315.0,0.002]
[1680445813752,0.05,28318.0,28313.0,0.3007]
[1680445813957,0.051,28318.0,28313.0,0.3027]
[1680445814359,0.051,28318.0,28315.0,0.002]
[1680445815462,0.3007,28316.0,28315.0,0.002]
[1680445815760,0.3007,28316.0,28313.0,0.3027]
[1680445815954,0.05,28315.0,28313.0,0.3027]
[1680445816157,0.0023578,28314.0,28313.0,0.3027]
[1680445816555,0.0023578,28314.0,28313.0,0.002]
[1680445816750,0.0023578,28314.0,28309.0,0.05]
[1680445816955,0.0023578,28314.0,28313.0,0.002]
[1680445817362,0.0053578,28314.0,28313.0,0.002]
[1680445818266,0.0061846,28314.0,28313.0,0.002]
[1680445818757,0.0061846,28314.0,28309.0,0.05]
[1680445818966,0.0231846,28314.0,28308.0,0.6014]
[1680445819257,0.0031846,28314.0,28308.0,0.6014]
[1680445819460,0.0301846,28314.0,28308.0,0.6014]
[1680445819762,0.0231846,28314.0,28308.0,0.6014]
[1680445820363,0.0301846,28314.0,28308.0,0.6014]
[1680445820861,0.0301846,28314.0,28308.0,0.3007]
[1680445821658,0.3007,28312.0,28308.0,0.3007]
[1680445822558,0.3077,28312.0,28308.0,0.3007]
[1680445822958,0.007,28312.0,28308.0,0.3007]
[1680445823160,0.014,28312.0,28308.0,0.3007]
[1680445823559,0.014,28312.0,28308.0,0.3507]
[1680445823764,0.014,28312.0,28309.0,0.05]
[1680445823958,0.014,28312.0,28311.0,0.3007]
[1680445824265,0.01718592,28312.0,28311.0,0.3007]